bitfinex-derivatives/quotes_BTCF0:USTF0_20250309
["timestamp","ask_amount","ask_price","bid_price","bid_amount"]
[1741529199358,3e-08,83462.0,83453.0,0.4974888]
[1741529199557,3e-08,83462.0,83461.0,0.480638]
[1741529199763,3e-08,83462.0,83461.0,0.8360868]
[1741529200349,3e-08,83462.0,83461.0,0.6860868]
[1741529200554,0.11983653,83462.0,83461.0,0.672518]
[1741529200853,3e-08,83462.0,83461.0,0.55268]
[1741529201052,0.11983653,83462.0,83461.0,0.55268]
[1741529201251,0.11983653,83462.0,83461.0,0.19188]
[1741529202058,0.11983653,83462.0,83461.0,0.311718]
[1741529202655,3e-08,83462.0,83461.0,0.311718]
[1741529203050,0.00622,83463.0,83461.0,0.559618]
[1741529203051,3e-08,83463.0,83461.0,0.559618]
[1741529203264,0.51440379,83483.0,83462.0,0.2653]
[1741529203553,0.51440379,83483.0,83482.0,0.1198078]
[1741529203554,0.51380378,83483.0,83482.0,0.1198078]
[1741529204362,0.63361018,83483.0,83482.0,0.1198078]
[1741529204658,0.27281018,83483.0,83482.0,0.6330078]
[1741529205062,0.1198179,83475.0,83474.0,0.00017973]
[1741529205660,0.3751179,83475.0,83474.0,0.00017973]
[1741529205864,0.6294179,83475.0,83474.0,0.00017973]
[1741529206265,0.6294179,83475.0,83474.0,0.24477973]
[1741529206562,0.1198365,83462.0,83461.0,0.311718]
[1741529208368,0.1198365,83462.0,83461.0,0.19188]
[1741529208565,0.1198365,83462.0,83461.0,0.311718]
[1741529208953,0.1797521,83466.0,83461.0,0.19188]
[1741529209161,0.1198351,83463.0,83462.0,0.3644365]
[1741529209361,0.1198351,83463.0,83462.0,0.2446]
[1741529209667,0.6221351,83463.0,83462.0,0.2446]
[1741529209860,0.6221351,83463.0,83462.0,0.3644365]
[1741529210055,0.3664351,83463.0,83462.0,0.3644365]
[1741529210264,0.2466,83463.0,83462.0,0.6238365]
[1741529210563,0.3608,83475.0,83462.0,0.6238365]
[1741529210564,0.119823,83472.0,83469.0,0.1198265]
[1741529210765,0.26991121,83479.0,83469.0,0.1198265]
[1741529211067,0.20845424,83479.0,83478.0,0.1198136]
[1741529212057,0.20845424,83479.0,83478.0,0.6143136]
[1741529212858,0.20845424,83479.0,83470.0,0.00017973]
[1741529212859,0.56925424,83479.0,83470.0,0.00017973]
[1741529213058,0.4806236,83471.0,83470.0,0.00017973]
[1741529213660,0.4806236,83471.0,83470.0,0.24317973]
[1741529213864,0.4806236,83471.0,83470.0,0.00017973]
[1741529214271,0.1198365,83462.0,83445.0,0.4861]
[1741529214470,0.4806365,83462.0,83445.0,0.4861]
[1741529214666,0.3608,83462.0,83445.0,0.4861]
[1741529214871,0.0599245,83456.0,83453.0,0.0599241]
[1741529215068,0.119848,83455.0,83454.0,0.3628473]
[1741529215264,0.382848,83455.0,83454.0,0.3628473]
[1741529215869,0.382848,83455.0,83454.0,0.243]
[1741529216065,0.635248,83455.0,83454.0,0.362848]
[1741529216266,0.996048,83455.0,83454.0,0.243]
[1741529216771,0.1198552,83449.0,83448.0,0.059928]
[1741529217073,0.1198552,83449.0,83446.0,0.26317973]
[1741529217372,0.1198581,83447.0,83446.0,0.38303633]
[1741529217567,0.87688,83455.0,83446.0,0.26317973]
[1741529217873,0.11648754,83949.0,83458.0,0.1198408]
[1741529217874,0.1198467,83459.0,83458.0,0.1198408]
[1741529218077,0.1198437,83457.0,83456.0,0.059922]
[1741529218264,0.3213208,83459.0,83447.0,0.2463]
[1741529218265,0.1198566,83448.0,83447.0,0.3661581]
[1741529218465,0.1198566,83448.0,83447.0,0.2463]
[1741529218665,0.1198566,83448.0,83447.0,0.3661581]
[1741529218982,0.1198566,83448.0,83447.0,0.2463]
[1741529219275,0.1198566,83448.0,83447.0,0.3661581]
[1741529220772,0.1198544,83450.0,83449.0,0.1198538]
[1741529220961,0.1198581,83447.0,83446.0,0.00017973]
[1741529221161,0.3608,83447.0,83419.0,0.19184]
[1741529221371,0.1198969,83420.0,83419.0,0.19184]
[1741529221774,0.11704,83434.0,83419.0,0.19184]
[1741529221775,0.059943,83428.0,83419.0,0.19184]
[1741529221981,0.2493,83429.0,83419.0,0.19184]
[1741529222271,0.4947,83427.0,83423.0,0.0599449]
[1741529222476,0.2454,83427.0,83426.0,0.1198882]
[1741529223077,0.0599443,83426.0,83423.0,0.0599449]
[1741529223273,0.2454,83427.0,83419.0,0.2517889]
[1741529223468,0.1198969,83420.0,83419.0,0.19184]
[1741529223976,0.1198969,83420.0,83419.0,0.3117383]
[1741529224180,0.50920001,83425.0,83422.0,0.1198925]
[1741529224181,0.25990001,83425.0,83422.0,0.1198925]
[1741529224474,0.18626594,83490.0,83421.0,0.0599471]
[1741529224475,3e-08,83432.0,83431.0,0.1198811]
[1741529224771,3e-08,83432.0,83431.0,0.7471611]
[1741529224975,3e-08,83432.0,83431.0,0.5971611]
[1741529225374,0.3608,83461.0,83431.0,0.62728]
[1741529225578,0.1797715,83458.0,83457.0,0.1198405]
[1741529226270,0.1797715,83458.0,83446.0,0.19184]
[1741529226271,0.1198696,83439.0,83438.0,0.3608]
[1741529226466,0.1198696,83439.0,83427.0,0.99768]
[1741529226467,0.1198854,83428.0,83427.0,0.19184]
[1741529227067,0.4806854,83428.0,83427.0,0.19184]
[1741529227373,0.3608,83428.0,83419.0,0.00017973]
[1741529227573,0.5145,83427.0,83419.0,0.00017973]
[1741529227770,0.6343873,83427.0,83426.0,0.1198882]
[1741529227969,0.0599392,83433.0,83420.0,0.3014465]
[1741529228169,0.2581,83437.0,83421.0,0.1198864]
[1741529228380,0.2564,83437.0,83420.0,0.2415]
[1741529228586,0.2581,83442.0,83441.0,0.1198667]
[1741529228775,0.3779652,83442.0,83441.0,0.1198667]
[1741529229083,0.1798121,83437.0,83436.0,0.1198735]
[1741529229279,0.1198796,83432.0,83431.0,0.361381]
[1741529229476,0.1198754,83436.0,83435.0,0.1198753]
[1741529229669,0.1198682,83440.0,83439.0,0.1198681]
[1741529230284,0.1198682,83440.0,83439.0,0.3604681]
[1741529230688,0.0599382,83435.0,83434.0,0.1198763]
[1741529230982,0.11576,83459.0,83444.0,0.1198624]
[1741529231185,0.06052041,83459.0,83445.0,0.3604609]
[1741529231477,0.0599252,83453.0,83445.0,0.4761809]
[1741529231684,0.0599225,83457.0,83445.0,0.4761809]
[1741529231881,0.3608,83468.0,83450.0,0.0599262]
[1741529232180,0.3608,83468.0,83445.0,0.35632]
[1741529232181,0.1198448,83458.0,83457.0,0.1198397]
[1741529232481,0.1198515,83453.0,83452.0,0.1198444]
[1741529232780,0.0599241,83454.0,83444.0,0.3608]
[1741529233079,0.1198609,83445.0,83444.0,0.12004213]
[1741529233378,0.2790166,83465.0,83444.0,0.00017973]
[1741529233581,0.7205,83465.0,83460.0,0.1198394]
[1741529233777,0.00017922,83461.0,83460.0,0.1198394]
[1741529234380,0.00017922,83461.0,83460.0,0.4806394]
[1741529234682,0.00126,83473.0,83460.0,0.4806394]
[1741529234683,0.00126,83473.0,83472.0,0.1198222]
[1741529234872,0.00126,83473.0,83472.0,0.4268222]
[1741529235082,0.3606948,83492.0,83491.0,0.1197949]
[1741529235279,0.3606948,83492.0,83491.0,0.1194849]
[1741529235474,0.2409,83492.0,83491.0,0.1194849]
[1741529235874,0.3606935,83492.0,83491.0,0.1194849]
[1741529236079,0.00377,83493.0,83492.0,0.1197935]
[1741529236282,0.00377,83493.0,83492.0,0.7290935]
[1741529236484,0.1,83500.0,83497.0,0.1197863]
[1741529237583,0.49292396,83498.0,83497.0,0.1197863]
[1741529238287,0.1197992,83488.0,83487.0,0.12872452]
[1741529238586,0.2432,83497.0,83486.0,0.2485]
[1741529238786,0.1197941,83495.0,83494.0,0.1197877]
[1741529239185,0.2432,83497.0,83494.0,0.1197877]
[1741529239186,0.1197868,83497.0,83496.0,0.1197877]
[1741529239388,0.3608,83499.0,83498.0,0.1197849]
[1741529239589,0.3608,83499.0,83426.0,0.01]
[1741529239786,0.1198021,83486.0,83485.0,0.3608]
[1741529239977,0.0598989,83489.0,83485.0,0.3608]
[1741529240179,0.5303,83498.0,83485.0,0.3608]
[1741529240491,0.1198021,83487.0,83486.0,0.1198021]
[1741529240881,0.2661,83488.0,83487.0,0.1198006]
[1741529241075,0.2661,83488.0,83487.0,0.6460006]
[1741529241384,0.3858992,83488.0,83487.0,0.6460006]
[1741529241581,0.2661,83488.0,83487.0,0.6460006]
[1741529241885,0.4206934,83497.0,83496.0,0.1197877]
[1741529241886,0.3608,83497.0,83496.0,0.1197877]
[1741529242189,0.3839849,83498.0,83497.0,0.1197863]
[1741529242393,0.0598983,83491.0,83487.0,0.2609]
[1741529242684,0.1197978,83489.0,83488.0,0.2653]
[1741529242878,0.4206983,83491.0,83489.0,0.1197978]
[1741529242879,0.3608,83491.0,83489.0,0.1197978]
[1741529243184,0.3608,83491.0,83490.0,0.1197963]
[1741529243389,0.50035258,83505.0,83490.0,0.617]
[1741529243589,0.50035258,83505.0,83499.0,0.1197834]
[1741529244483,0.50035258,83505.0,83499.0,0.6391834]
[1741529244676,0.13955258,83505.0,83499.0,0.8309834]
[1741529245685,0.06204623,83500.0,83499.0,0.8309834]
[1741529245890,0.02008246,83500.0,83499.0,0.8309834]
[1741529246789,0.58465798,83515.0,83514.0,0.1197619]
[1741529246790,0.49518671,83515.0,83514.0,0.1197619]
[1741529246987,0.0140246,83515.0,83514.0,0.1197619]
[1741529247184,0.1197605,83515.0,83514.0,0.1197619]
[1741529247485,0.4206791,83517.0,83513.0,0.53]
[1741529247687,0.4206791,83517.0,83513.0,0.1197633]
[1741529247688,0.6335619,83514.0,83513.0,0.1197633]
[1741529247896,0.6335619,83514.0,83506.0,0.17983361]
[1741529247897,0.1197719,83507.0,83506.0,0.17983361]
[1741529248190,0.51448,83514.0,83506.0,0.06006491]
[1741529248381,0.1796503,83513.0,83512.0,0.1197633]
[1741529248791,0.1197648,83512.0,83511.0,0.2657]
[1741529249290,0.6195648,83512.0,83511.0,0.3854662]
[1741529249486,0.01354597,83515.0,83514.0,0.1197619]
[1741529249682,0.01354597,83515.0,83512.0,0.0598817]
[1741529249683,0.1197605,83515.0,83512.0,0.3260817]
[1741529249882,0.1197633,83513.0,83512.0,0.0598817]
[1741529251089,0.2466,83514.0,83513.0,0.1197633]
[1741529251293,0.2466,83514.0,83513.0,0.3783633]
[1741529251483,0.01485771,83515.0,83514.0,0.1197619]
[1741529251794,0.13461821,83515.0,83514.0,0.2586]
[1741529251978,0.13461821,83515.0,83514.0,0.3783619]
[1741529252182,0.13461821,83515.0,83514.0,0.2586]
[1741529252691,0.1197662,83511.0,83510.0,0.1197665]
[1741529252879,0.4805662,83511.0,83510.0,0.1197665]
[1741529253081,0.1197705,83509.0,83508.0,0.1197696]
[1741529253282,0.2417,83510.0,83509.0,0.1197691]
[1741529253580,0.3608,83511.0,83510.0,0.1197676]
[1741529253778,0.4805662,83511.0,83510.0,0.3627676]
[1741529253984,0.4805662,83511.0,83510.0,0.3836676]
[1741529254586,0.4805662,83511.0,83510.0,0.2639]
[1741529254883,0.4805662,83511.0,83510.0,0.3836676]
[1741529255081,0.3608,83511.0,83506.0,0.00017961]
[1741529255281,0.1197719,83508.0,83507.0,0.1197713]
[1741529255591,0.1197719,83508.0,83507.0,0.3786713]
[1741529255887,0.00068,83510.0,83509.0,0.1197691]
[1741529256193,0.3608,83511.0,83510.0,0.1197676]
[1741529256586,0.3608,83511.0,83510.0,0.6229676]
[1741529257785,0.00162,83515.0,83514.0,0.1197619]
[1741529258292,0.00162,83515.0,83514.0,0.4805619]
[1741529258589,0.00162,83515.0,83514.0,0.9999619]
[1741529260892,4e-05,83517.0,83516.0,0.119759]
[1741529262188,0.1197676,83511.0,83510.0,0.1197671]
[1741529262494,0.1197676,83510.0,83509.0,0.10784]
[1741529262693,0.1197676,83510.0,83507.0,0.3595691]
[1741529262694,0.1197705,83508.0,83507.0,0.3595691]
[1741529263002,0.1197705,83508.0,83507.0,0.3595719]
[1741529263199,0.1197705,83508.0,83507.0,0.2398]
[1741529263401,0.1197705,83508.0,83507.0,0.3595719]
[1741529263892,0.1197705,83508.0,83507.0,0.2398]
[1741529264096,0.1197705,83508.0,83507.0,0.3595719]
[1741529264299,0.00214,83510.0,83507.0,0.5054]
[1741529264490,0.00214,83510.0,83509.0,0.4805691]
[1741529265292,0.1219076,83510.0,83509.0,0.4805691]
[1741529265494,0.00214,83510.0,83509.0,0.4805691]
[1741529268595,0.23945618,83513.0,83512.0,0.1197648]
[1741529268799,0.11969258,83513.0,83512.0,0.1197648]
[1741529269186,0.23945588,83513.0,83512.0,0.1197648]
[1741529269598,0.23945588,83513.0,83507.0,0.5054]
[1741529269599,0.1197705,83508.0,83507.0,0.61164]
[1741529269896,0.1197705,83508.0,83507.0,0.7314119]
[1741529270296,0.3011824,83512.0,83509.0,0.0598839]
[1741529270491,0.3614662,83511.0,83510.0,0.2529]
[1741529270691,0.3614662,83511.0,83510.0,0.3726676]
[1741529271003,0.3614662,83511.0,83510.0,0.2529]
[1741529271194,0.4951,83511.0,83510.0,0.3726676]
[1741529271591,0.6148662,83511.0,83510.0,0.3726676]
[1741529271791,0.4951,83511.0,83510.0,0.3726676]
[1741529272404,0.6148662,83511.0,83510.0,0.3726676]
[1741529273298,0.6148662,83511.0,83510.0,0.2529]
[1741529273508,0.1197719,83507.0,83506.0,0.00017961]
[1741529273894,0.5865319,83507.0,83506.0,0.00017961]
[1741529274097,0.61676,83507.0,83499.0,0.1918]
[1741529274292,0.480582,83500.0,83499.0,0.1918]
[1741529274495,0.586542,83500.0,83499.0,0.1918]
[1741529274804,0.59959019,83500.0,83499.0,0.1918]
[1741529275000,0.46676,83500.0,83499.0,0.3115834]
[1741529275207,0.586542,83500.0,83499.0,0.3115834]
[1741529275503,0.586542,83500.0,83499.0,0.1918]
[1741529276305,0.566542,83500.0,83499.0,0.1918]
[1741529277109,0.1197935,83492.0,83491.0,0.00017961]
[1741529277405,0.5865535,83492.0,83491.0,0.00017961]
[1741529277703,0.10596,83492.0,83491.0,0.00017961]
[1741529278004,0.2257535,83492.0,83491.0,0.11997451]
[1741529278205,0.5865535,83492.0,83491.0,0.00017961]
[1741529278503,0.5865535,83492.0,83470.0,0.19172]
[1741529278504,1.19666,83492.0,83470.0,0.19172]
[1741529278807,0.1198136,83478.0,83470.0,0.19172]
[1741529279017,0.2257736,83478.0,83470.0,0.19172]
[1741529279407,0.1198236,83471.0,83470.0,0.19172]
[1741529279611,0.2257836,83471.0,83470.0,0.311545]
[1741529279905,0.10596,83471.0,83470.0,0.311545]
[1741529280108,0.10596,83471.0,83470.0,0.813545]
[1741529280298,0.1198191,83476.0,83473.0,0.0599097]
[1741529280505,0.1198236,83472.0,83471.0,0.0599112]
[1741529280698,0.2191,83479.0,83471.0,0.0599112]
[1741529280699,0.2191,83479.0,83478.0,0.1198136]
[1741529280903,0.2191,83479.0,83478.0,0.4806136]
[1741529281301,0.0599091,83475.0,83472.0,0.1198208]
[1741529281498,0.2191,83479.0,83475.0,0.0599087]
[1741529281700,0.37348501,83486.0,83485.0,0.1198035]
[1741529282103,0.63738501,83486.0,83485.0,0.1198035]
[1741529282301,0.25367961,83486.0,83485.0,0.1198035]
[1741529282504,0.15508357,83500.0,83499.0,0.1197834]
[1741529282704,0.3608,83528.0,83512.0,0.1197648]
[1741529282705,0.2535,83519.0,83512.0,0.1197648]
[1741529283215,0.2551,83518.0,83512.0,0.1197648]
[1741529283513,0.1243133,83513.0,83512.0,0.1197648]
[1741529284414,0.00455,83513.0,83512.0,0.1197648]
[1741529284799,0.00399,83513.0,83512.0,0.1197648]
[1741529286211,0.17493555,83526.0,83520.0,0.1197533]
[1741529286530,0.17493555,83526.0,83525.0,0.8413461]
[1741529287499,0.17493555,83526.0,83525.0,1.3407461]
[1741529287705,0.20992266,83532.0,83531.0,0.1197375]
[1741529287897,0.20992266,83532.0,83531.0,0.2256975]
[1741529288909,0.3608,83557.0,83531.0,0.10596]
[1741529289107,0.3608,83557.0,83543.0,0.4805203]
[1741529289308,0.17654587,83544.0,83543.0,0.7782003]
[1741529289500,0.17654587,83544.0,83543.0,0.7740303]
[1741529289810,0.1196947,83561.0,83543.0,1.16098]
[1741529290015,0.1196947,83561.0,83560.0,0.480496]
[1741529290313,0.24491956,83562.0,83561.0,0.1196945]
[1741529290512,0.24491956,83562.0,83561.0,0.3807945]
[1741529290709,0.36461266,83562.0,83561.0,0.5145]
[1741529290905,0.36461266,83562.0,83561.0,0.2611]
[1741529291212,0.24491956,83562.0,83561.0,0.2611]
[1741529291410,0.24491956,83562.0,83561.0,0.3807945]
[1741529291810,0.36461266,83562.0,83561.0,0.6341945]
[1741529292009,0.35083956,83562.0,83543.0,0.19172]
[1741529292212,0.3608,83556.0,83543.0,0.19172]
[1741529292403,0.3608,83556.0,83551.0,0.1197076]
[1741529292404,0.1197103,83552.0,83551.0,0.1197076]
[1741529292712,0.61429001,83555.0,83544.0,0.51407961]
[1741529292902,0.61429001,83555.0,83554.0,0.1197046]
[1741529292903,0.25417,83555.0,83554.0,0.1197046]
[1741529293301,0.119716,83547.0,83546.0,0.1197147]
[1741529293511,0.1197146,83547.0,83546.0,0.5177]
[1741529293904,0.1197146,83547.0,83546.0,0.2605]
[1741529294301,0.3715146,83547.0,83546.0,0.2605]
[1741529295314,0.3715146,83547.0,83544.0,0.00017961]
[1741529295315,0.1197175,83545.0,83544.0,0.00017961]
[1741529296008,0.4774375,83545.0,83544.0,0.00017961]
[1741529296609,0.4774375,83545.0,83544.0,0.11989851]
[1741529296814,0.4774375,83545.0,83544.0,0.00017961]
[1741529297308,0.35772,83545.0,83544.0,0.11989851]
[1741529297509,0.35772,83545.0,83544.0,0.37309851]
[1741529297712,0.35772,83545.0,83544.0,0.63019851]
[1741529297909,0.3715175,83545.0,83544.0,0.63019851]
[1741529298111,0.1197065,83553.0,83552.0,0.119706]
[1741529298312,0.35228,83559.0,83552.0,0.119706]
[1741529298615,0.35228,83559.0,83554.0,0.1197046]
[1741529298616,0.1797257,83555.0,83554.0,0.1197046]
[1741529298916,0.1197046,83554.0,83553.0,0.3769058]
[1741529299114,0.2464,83554.0,83538.0,0.10588]
[1741529299418,0.4805175,83545.0,83543.0,0.19172]
[1741529299609,0.1197447,83526.0,83519.0,0.19164]
[1741529299916,0.1197533,83520.0,83519.0,0.19164]
[1741529300118,0.4447333,83520.0,83519.0,0.19164]
[1741529300611,0.4447333,83520.0,83506.0,0.2572]
[1741529300612,0.1197691,83509.0,83506.0,0.2572]
[1741529301008,0.3388691,83509.0,83508.0,6e-08]
[1741529301211,0.2191,83509.0,83494.0,0.21442748]
[1741529301413,0.4805892,83495.0,83494.0,0.21442748]
[1741529301607,0.5864692,83495.0,83494.0,0.21442748]
[1741529301815,0.7364692,83495.0,83494.0,0.21442748]
[1741529302315,0.7364692,83495.0,83485.0,0.19168]
[1741529302316,0.83578,83495.0,83485.0,0.19168]
[1741529302506,0.4805949,83491.0,83486.0,0.00017961]
[1741529302912,0.6305949,83491.0,83486.0,0.00017961]
[1741529303216,0.1198006,83487.0,83486.0,0.00017961]
[1741529303516,0.2256806,83487.0,83486.0,0.00017961]
[1741529304202,0.22709372,83487.0,83486.0,0.00017961]
[1741529304913,0.47229372,83487.0,83486.0,0.00017961]
[1741529305611,0.47229372,83487.0,83486.0,0.26427961]
[1741529306016,0.47229372,83487.0,83486.0,0.00017961]
[1741529306312,0.47229372,83487.0,83485.0,0.19168]
[1741529306313,0.47229372,83487.0,83485.0,0.15969101]
[1741529306518,0.1198236,83471.0,83470.0,0.19172]
[1741529306910,0.1198236,83471.0,83470.0,0.311545]
[1741529307111,0.1198236,83471.0,83470.0,0.576445]
[1741529307309,0.1198236,83471.0,83470.0,0.19172]
[1741529307514,0.6306236,83471.0,83470.0,0.19172]
[1741529307814,0.6306236,83471.0,83462.0,0.00017961]
[1741529307815,0.1198351,83463.0,83462.0,0.00017961]
[1741529308021,0.2257551,83463.0,83462.0,0.00017961]
[1741529308407,0.1198466,83455.0,83454.0,0.19172]
[1741529308713,0.0599211,83458.0,83454.0,0.19172]
[1741529308918,0.1658424,83457.0,83455.0,0.5242]
[1741529309218,0.1198466,83455.0,83454.0,0.19172]
[1741529309714,0.6126466,83455.0,83454.0,0.19172]
[1741529309915,0.9734466,83455.0,83454.0,0.19172]
[1741529310126,1.0793666,83455.0,83454.0,0.19172]
[1741529310603,1.0793666,83455.0,83454.0,0.311568]
[1741529310805,1.0793666,83455.0,83454.0,0.19172]
[1741529311013,0.7185666,83455.0,83454.0,0.19172]
[1741529311516,0.7185666,83455.0,83454.0,0.311568]
[1741529311709,0.7185666,83455.0,83454.0,0.562168]
[1741529311910,0.7185666,83455.0,83454.0,0.44232]
[1741529312107,0.6126466,83455.0,83454.0,0.44232]
[1741529312312,0.7185666,83455.0,83454.0,0.19172]
[1741529312924,0.1198566,83448.0,83447.0,0.3608]
[1741529313115,0.2257766,83448.0,83447.0,0.3608]
[1741529313422,0.2257766,83448.0,83430.0,0.3608]
[1741529313423,0.1198811,83431.0,83430.0,0.3608]
[1741529313628,0.2258011,83431.0,83430.0,0.3608]
[1741529313817,0.2258011,83431.0,83430.0,0.4806825]
[1741529314327,0.2258011,83431.0,83430.0,0.7386825]
[1741529314524,0.2258011,83431.0,83430.0,0.3608]
[1741529314711,0.1198868,83427.0,83422.0,0.00017972]
[1741529315020,0.1198925,83423.0,83422.0,0.00017972]
[1741529315217,0.2258125,83423.0,83422.0,0.00017972]
[1741529315414,0.23872003,83423.0,83422.0,0.00017972]
[1741529315920,0.48292003,83423.0,83422.0,0.00017972]
[1741529316223,0.1199155,83407.0,83406.0,0.311717]
[1741529316423,0.2258755,83407.0,83406.0,0.1918]
[1741529317215,0.2258755,83407.0,83406.0,0.311717]
[1741529317710,0.4739755,83407.0,83406.0,0.311717]
[1741529317916,0.10596,83407.0,83406.0,0.311717]
[1741529318220,0.2191,83412.0,83411.0,0.1199098]
[1741529318424,0.2511,83426.0,83414.0,0.1199055]
[1741529318623,0.10592,83430.0,83414.0,0.5866255]
[1741529318825,4e-08,83415.0,83414.0,0.5866255]
[1741529319213,4e-08,83415.0,83414.0,1.2558255]
[1741529319420,4e-08,83415.0,83414.0,1.1058255]
[1741529319723,0.11990404,83415.0,83414.0,0.7450655]
[1741529319924,0.11990404,83415.0,83414.0,0.5192]
[1741529320121,0.11990404,83415.0,83414.0,0.2573]
[1741529320325,4e-08,83415.0,83414.0,0.3772055]
[1741529321021,4e-08,83415.0,83414.0,0.6226055]
[1741529321825,0.2191,83421.0,83420.0,0.1198969]
[1741529322023,0.3389954,83421.0,83420.0,0.1198969]
[1741529322225,0.2191,83421.0,83420.0,0.1198969]
[1741529322527,0.3389954,83421.0,83420.0,0.6079969]
[1741529323226,0.3389954,83421.0,83420.0,0.4881]
[1741529323429,0.68586,83421.0,83415.0,0.00010752]
[1741529323631,0.1199026,83416.0,83415.0,0.00010752]
[1741529323928,0.1199026,83416.0,83415.0,2e-08]
[1741529324226,0.1199026,83416.0,83386.0,0.3608]
[1741529324227,0.1199242,83401.0,83389.0,0.19188]
[1741529324430,0.5866842,83401.0,83389.0,0.19188]
[1741529324823,0.5866842,83401.0,83393.0,0.1199347]
[1741529325129,0.5866842,83401.0,83389.0,0.19188]
[1741529325321,0.5866842,83401.0,83397.0,0.1199293]
[1741529325522,0.5866842,83401.0,83400.0,0.2199256]
[1741529325724,0.0599612,83403.0,83400.0,0.2199256]
[1741529325725,0.10596,83410.0,83400.0,0.2199256]
[1741529326033,0.12009254,83409.0,83408.0,0.1199141]
[1741529326417,0.1199141,83408.0,83407.0,0.2515]
[1741529326624,0.1199141,83408.0,83400.0,0.1]
[1741529326625,0.1199213,83403.0,83402.0,0.2515]
[1741529326815,0.1199213,83403.0,83402.0,0.3714227]
[1741529327020,0.1199213,83403.0,83402.0,0.2515]
[1741529327227,0.1199242,83401.0,83400.0,0.1]
[1741529327429,0.2258842,83401.0,83400.0,0.1]
[1741529327825,0.7152842,83401.0,83400.0,0.1]
[1741529328024,0.2258842,83401.0,83400.0,0.1]
[1741529328226,0.0599609,83403.0,83400.0,0.1]
[1741529328431,0.1199227,83402.0,83401.0,0.6148242]
[1741529329226,0.1199227,83402.0,83401.0,0.2494]
[1741529329429,0.1199242,83401.0,83400.0,0.1]
[1741529329830,0.6284242,83401.0,83400.0,0.1]
[1741529330036,0.8475242,83401.0,83400.0,0.1]
[1741529331038,0.3390242,83401.0,83400.0,0.2199256]
[1741529331228,0.10596,83405.0,83400.0,0.3408]
[1741529331542,0.4628,83410.0,83400.0,0.3408]
[1741529331543,0.12009354,83409.0,83408.0,0.1199141]
[1741529331837,0.00017984,83409.0,83408.0,0.1199141]
[1741529332427,0.12009254,83409.0,83408.0,0.1199141]
[1741529332629,0.12009254,83409.0,83408.0,0.3637141]
[1741529333126,0.00017984,83409.0,83408.0,0.5556741]
[1741529333326,0.00235,83422.0,83421.0,0.1198954]
[1741529333839,0.122244,83422.0,83421.0,0.3608]
[1741529334141,0.122244,83422.0,83421.0,0.7244954]
[1741529334436,0.122244,83422.0,83421.0,0.6038954]
[1741529335039,0.122244,83422.0,83421.0,0.484]
[1741529336430,0.122244,83422.0,83421.0,0.2438]
[1741529336630,0.1199055,83414.0,83413.0,0.2487]
[1741529336833,0.1199098,83411.0,83410.0,0.2496]
[1741529337338,0.1199098,83411.0,83410.0,0.3695112]
[1741529338124,0.10592,83421.0,83420.0,0.1198969]
[1741529338125,0.1198954,83421.0,83420.0,0.1198969]
[1741529338335,0.00235,83422.0,83420.0,0.1198969]
[1741529338637,0.00235,83422.0,83421.0,0.3706954]
[1741529338638,0.122244,83422.0,83421.0,0.3706954]
[1741529338828,0.122244,83422.0,83421.0,0.6193954]
[1741529339834,0.122244,83422.0,83421.0,0.4995]
[1741529340039,0.122244,83422.0,83421.0,0.6193954]
[1741529340742,0.00235,83422.0,83421.0,0.6193954]
[1741529341436,0.00017984,83430.0,83429.0,0.1198839]
[1741529341735,0.00017984,83430.0,83429.0,0.7785239]
[1741529342439,0.00017984,83430.0,83429.0,1.2842239]
[1741529342940,0.12006234,83430.0,83429.0,0.44892]
[1741529343137,0.61046234,83430.0,83429.0,0.44892]
[1741529344140,0.61046234,83430.0,83429.0,0.5688039]
[1741529344339,0.36236234,83430.0,83429.0,0.5688039]
[1741529344832,0.00017984,83430.0,83429.0,0.5688039]
[1741529345033,0.13848754,83449.0,83429.0,0.80972]
[1741529345229,0.13848754,83449.0,83448.0,0.1198566]
[1741529345435,0.13848754,83449.0,83448.0,0.6725766]
[1741529345635,0.13148754,83449.0,83448.0,0.6725766]
[1741529346138,0.25134274,83449.0,83448.0,1.1820766]
[1741529346746,0.25834274,83449.0,83448.0,1.1830766]
[1741529347048,0.25834274,83449.0,83448.0,0.80612]
[1741529347740,0.50864274,83449.0,83448.0,0.19292]
[1741529347940,0.1198667,83441.0,83440.0,0.00017984]
[1741529348144,0.2257467,83441.0,83440.0,0.00017984]
[1741529348743,0.00076,83443.0,83442.0,0.1198652]
[1741529349045,0.1206238,83443.0,83442.0,0.3608]
[1741529349744,0.1206238,83443.0,83442.0,0.4806652]
[1741529349931,0.1198667,83441.0,83440.0,0.12004644]
[1741529350137,0.1198667,83441.0,83440.0,0.23991354]
[1741529350535,0.1268667,83441.0,83440.0,0.23991354]
[1741529350737,0.1268667,83441.0,83440.0,0.00017984]
[1741529350935,0.3929667,83441.0,83440.0,0.00017984]
[1741529351337,0.3929667,83441.0,83440.0,0.24927984]
[1741529351538,0.3929667,83441.0,83440.0,0.36914794]
[1741529351738,0.3929667,83441.0,83440.0,0.24927984]
[1741529352244,0.3929667,83441.0,83440.0,4e-08]
[1741529352641,0.6441667,83441.0,83440.0,4e-08]
[1741529354540,0.3780667,83441.0,83440.0,4e-08]
[1741529354740,0.6275667,83441.0,83440.0,4e-08]
[1741529355648,0.9813667,83441.0,83440.0,4e-08]
[1741529355948,0.9863667,83441.0,83440.0,4e-08]
[1741529356151,1.2054667,83441.0,83440.0,4e-08]
[1741529357245,1.2074667,83441.0,83440.0,4e-08]
[1741529357746,1.2074667,83441.0,83427.0,0.2523]
[1741529357747,1.0876,83441.0,83427.0,0.2523]
[1741529357949,0.1198925,83423.0,83422.0,0.2401]
[1741529358243,0.1198997,83418.0,83417.0,0.2523]
[1741529358455,0.1198997,83418.0,83417.0,0.6268012]
[1741529359346,0.12072668,83418.0,83417.0,0.6268012]
[1741529359853,0.12072668,83418.0,83417.0,0.5069]
[1741529360741,0.1199012,83417.0,83416.0,0.1605827]
[1741529360943,0.8516012,83417.0,83416.0,0.1290239]
[1741529361246,0.1199112,83410.0,83409.0,5e-08]
[1741529361445,0.5865112,83410.0,83409.0,5e-08]
[1741529362651,1.0860112,83410.0,83409.0,5e-08]
[1741529363750,1.3051112,83410.0,83409.0,5e-08]
[1741529364047,1.4551112,83410.0,83409.0,5e-08]
[1741529364643,0.1199414,83389.0,83388.0,0.2459]
[1741529364847,0.2257414,83389.0,83388.0,0.2459]
[1741529365244,0.1058,83389.0,83388.0,0.3568429]
[1741529365446,0.1859518,83400.0,83399.0,0.119927]